bitfinex/quotes_ETHUSD_20220115
["timestamp","ask_amount","ask_price","bid_price","bid_amount"]
[1642278748748,2.33213685,3364.4,3364.3,1.45326803]
[1642278749550,2.33213685,3364.4,3364.3,2.930806]
[1642278750182,2.33213685,3364.4,3364.3,1.45326803]
[1642278750384,3.10913685,3364.4,3364.3,1.45326803]
[1642278751683,5.65127772,3364.4,3364.3,1.45326803]
[1642278753741,6.42827772,3364.4,3364.3,1.45326803]
[1642278754340,3.26553772,3364.4,3364.3,3.4170915]
[1642278754543,3.26553772,3364.4,3364.3,1.49128103]
[1642278754945,2.63298772,3364.4,3364.3,1.49128103]
[1642278755840,0.777,3364.4,3364.3,1.49128103]
[1642278756941,1.554,3364.4,3364.3,1.49128103]
[1642278757889,1.554,3364.4,3364.3,0.467013]
[1642278759090,1.554,3364.4,3364.3,0.429]
[1642278760094,2.331,3364.4,3364.3,0.429]
[1642278761735,2.331,3364.4,3364.3,1.4347272]
[1642278763336,3.108,3364.4,3364.3,1.4347272]
[1642278765588,3.108,3364.4,3364.3,1.4784432]
[1642278765989,3.108,3364.4,3364.3,1.4347272]
[1642278766588,3.885,3364.4,3364.3,1.4347272]
[1642278769740,4.662,3364.4,3364.3,1.4347272]
[1642278771936,4.612,3364.4,3364.3,1.4706442]
[1642278772391,4.612,3364.4,3364.3,1.4347272]
[1642278772988,5.389,3364.4,3364.3,1.4347272]
[1642278776137,6.166,3364.4,3364.3,1.4347272]
[1642278778445,8.70810114,3364.4,3364.3,1.4347272]
[1642278779341,9.48510114,3364.4,3364.3,1.4347272]
[1642278781885,9.48510114,3364.4,3364.3,0.429]
[1642278782486,10.26210114,3364.4,3364.3,0.429]
[1642278784540,10.16210114,3364.4,3364.3,0.429]
[1642278785740,10.93910114,3364.4,3364.3,0.429]
[1642278786742,10.93910114,3364.4,3364.3,1.32339466]
[1642278787143,10.93910114,3364.4,3364.3,0.429]
[1642278788190,10.93910114,3364.4,3364.3,0.42464873]
[1642278788489,8.397,3364.4,3364.3,0.42464873]
[1642278788889,11.71613194,3364.4,3364.3,0.42464873]
[1642278789188,12.69378064,3364.4,3364.3,0.42464873]
[1642278791546,11.71613194,3364.4,3364.3,0.42464873]
[1642278792144,12.49313194,3364.4,3364.3,0.42464873]
[1642278792746,13.54057474,3364.4,3364.3,0.42464873]
[1642278792947,13.54057474,3364.4,3364.2,0.032733]
[1642278793146,13.54057474,3364.4,3364.1,0.032733]
[1642278793147,0.021411,3364.3,3364.1,0.032733]
[1642278793547,13.54057474,3364.4,3364.2,0.00113685]
[1642278794447,0.01761479,3364.3,3364.1,0.00170527]
[1642278795289,0.777,3364.3,3364.1,0.00170527]
[1642278795688,0.777,3364.3,3364.0,0.00227369]
[1642278796888,0.727,3364.3,3364.0,0.00227369]
[1642278797487,0.04928596,3364.2,3364.0,0.00227369]
[1642278797894,13.9189,3364.1,3364.0,0.00227369]
[1642278798089,13.9189,3364.1,3363.8,0.00341054]
[1642278798289,13.9189,3364.1,3363.7,0.00397897]
[1642278798489,14.6959,3364.1,3363.7,0.00397897]
[1642278798747,0.89019658,3363.8,3363.6,0.07001339]
[1642278798944,0.89019658,3363.8,3363.6,0.032733]
[1642278799151,0.88139606,3363.8,3363.7,0.00397897]
[1642278799944,0.8959,3364.1,3363.7,0.00397897]
[1642278800144,0.8959,3364.1,3363.8,0.593363]
[1642278800345,0.8959,3364.1,3364.0,0.045463]
[1642278800643,0.8959,3364.1,3364.0,0.47673669]
[1642278800845,0.8959,3364.1,3364.0,1.61602506]
[1642278801045,0.89183487,3364.1,3364.0,0.47673669]
[1642278801245,0.89183487,3364.1,3364.0,0.43127369]
[1642278801650,1.66883487,3364.1,3364.0,0.43127369]
[1642278804896,2.44583487,3364.1,3364.0,0.43127369]
[1642278807140,3.42462434,3364.1,3364.0,0.43127369]
[1642278807539,3.30978947,3364.1,3364.0,0.43127369]
[1642278808139,4.08678947,3364.1,3364.0,0.43127369]
[1642278811387,4.86378947,3364.1,3364.0,0.43127369]
[1642278813395,4.86378947,3364.1,3364.0,0.00227369]
[1642278813838,4.86378947,3364.1,3363.9,0.00284212]
[1642278814654,5.64078947,3364.1,3363.9,0.00284212]
[1642278816455,5.64078947,3364.1,3363.9,0.03212172]
[1642278816656,5.64078947,3364.1,3363.9,0.06670172]
[1642278816853,4.662,3364.1,3364.0,0.00227369]
[1642278817054,4.6579326,3364.1,3364.0,1.90152274]
[1642278817255,4.6579326,3364.1,3364.0,0.51837769]
[1642278817695,4.6579326,3364.1,3364.0,0.47291469]
[1642278817903,5.4349326,3364.1,3364.0,0.47291469]
[1642278818093,5.4349326,3364.1,3364.0,0.59181469]
[1642278819096,5.4349326,3364.1,3364.0,0.55017369]
[1642278820098,5.4349326,3364.1,3364.0,0.43127369]
[1642278821140,6.2119326,3364.1,3364.0,0.43127369]
[1642278824045,7.16315146,3364.1,3364.0,0.43127369]
[1642278824246,7.94015146,3364.1,3364.0,0.43127369]
[1642278824900,7.94015146,3364.1,3364.0,0.00227369]
[1642278825298,7.94015146,3364.1,3363.9,0.00284212]
[1642278825494,7.94015146,3364.1,3364.0,0.00227369]
[1642278825696,7.94015146,3364.1,3363.9,0.00284212]
[1642278827495,8.71715146,3364.1,3363.9,0.00284212]
[1642278829843,8.71715146,3364.1,3363.9,0.03874512]
[1642278830342,8.71715146,3364.1,3364.0,0.00227369]
[1642278830741,9.49415146,3364.1,3364.0,0.00227369]
[1642278831441,9.49415146,3364.1,3364.0,0.43127369]
[1642278833890,10.27115146,3364.1,3364.0,0.43127369]
[1642278837047,11.04815146,3364.1,3364.0,0.43127369]
[1642278837450,11.04815146,3364.1,3363.7,0.1189]
[1642278837650,11.04815146,3364.1,3363.7,0.457196]
[1642278837949,11.04815146,3364.1,3363.8,0.00113685]
[1642278839249,0.1189,3364.0,3363.8,0.00113685]
[1642278839649,0.1189,3364.0,3363.8,0.00466481]
[1642278839910,0.1189,3364.0,3363.8,0.00113685]
[1642278840301,0.8959,3364.0,3363.8,0.00113685]
[1642278840499,0.777,3364.0,3363.8,0.00113685]
[1642278841702,0.8959,3364.0,3363.8,0.00113685]
[1642278841903,0.8959,3364.0,3363.8,0.0143431]
[1642278842102,0.8959,3364.0,3363.8,0.00113685]
[1642278843503,1.6729,3364.0,3363.8,0.00113685]
[1642278846043,1.554,3364.0,3363.8,0.00113685]
[1642278846249,1.554,3364.0,3363.5,0.00284212]
[1642278846642,0.01115983,3363.9,3363.5,0.00284212]
[1642278846842,2.331,3364.0,3363.5,0.12174212]
[1642278847142,2.331,3364.0,3363.6,0.0022737]
[1642278848801,2.331,3364.0,3363.5,0.00284212]
[1642278848992,2.331,3364.0,3363.6,0.01704969]
[1642278849393,2.331,3364.0,3363.7,0.00170528]
[1642278849794,0.02074893,3363.9,3363.7,0.00170528]
[1642278849994,0.02074893,3363.9,3363.5,0.1189]
[1642278849995,0.02074893,3363.9,3363.6,0.0022737]
[1642278850196,3.108,3364.0,3363.6,0.0022737]
[1642278851448,3.2269,3364.0,3363.6,0.0022737]
[1642278852944,0.05112253,3363.9,3363.6,0.0022737]
[1642278853544,0.05112253,3363.9,3363.5,0.00284212]
[1642278853745,4.0039,3364.0,3363.5,0.00284212]
[1642278854147,3.55,3363.8,3363.2,1.02550918]
[1642278854348,0.033701,3363.4,3363.0,0.1189]
[1642278854546,0.033701,3363.4,3363.3,0.00113685]
[1642278854746,0.033701,3363.4,3363.1,0.1189]
[1642278854996,0.033701,3363.4,3363.1,0.00113685]
[1642278855196,2.50493453,3363.3,3363.1,0.00113685]
[1642278855399,2.50493453,3363.3,3362.7,0.00341054]
[1642278855596,2.50493453,3363.3,3362.8,0.1189]
[1642278855795,2.50493453,3363.3,3362.7,0.1189]
[1642278855995,2.50493453,3363.3,3362.9,0.00227369]
[1642278856295,2.50493453,3363.3,3362.8,0.00284212]
[1642278856296,3.28193453,3363.3,3362.8,0.00284212]
[1642278856696,3.24922447,3363.3,3362.8,0.00284212]
[1642278857099,1.812462,3363.2,3362.8,0.00284212]
[1642278857298,1.80217129,3363.2,3362.8,0.00284212]
[1642278857496,3.24922447,3363.3,3362.8,0.00284212]
[1642278859344,4.02622447,3363.3,3362.8,0.00284212]
[1642278859745,2.0,3363.2,3362.8,0.00284212]
[1642278859946,0.045463,3362.9,3362.8,0.00284212]
[1642278860346,0.045463,3362.9,3362.7,0.00341054]
[1642278860545,0.045463,3362.8,3362.5,0.00454739]
[1642278860745,0.045463,3362.8,3362.4,0.00511581]
[1642278860946,1.41790027,3362.7,3362.4,0.00511581]
[1642278861146,1.41790027,3362.7,3362.4,0.43411581]
[1642278861345,0.96038932,3362.6,3362.4,0.429]
[1642278861544,0.96038932,3362.6,3362.5,0.00454739]
[1642278862707,1.73738932,3362.6,3362.5,0.00454739]
[1642278864414,1.73738932,3362.6,3362.5,0.6243579]
[1642278864606,1.73738932,3362.6,3362.5,8.9243579]
[1642278864807,1.73738932,3362.6,3362.5,8.92890529]
[1642278864808,0.777,3362.6,3362.5,8.92890529]
[1642278865510,2.3152072,3362.6,3362.5,8.92890529]
[1642278865710,3.0922072,3362.6,3362.5,8.92890529]
[1642278867448,3.0922072,3362.6,3362.5,0.62890529]
[1642278867650,2.9922072,3362.6,3362.5,0.62890529]
[1642278868048,2.9922072,3362.6,3362.5,0.55244739]
[1642278868449,2.9922072,3362.6,3362.5,0.43354739]
[1642278868850,2.231,3362.6,3362.5,0.43354739]
[1642278869906,2.231,3362.6,3362.5,0.66684739]
[1642278870095,2.231,3362.6,3362.5,0.55244739]
[1642278870295,2.231,3362.6,3362.5,0.66364739]
[1642278870495,2.231,3362.6,3362.5,0.55244739]
[1642278871997,3.008,3362.6,3362.5,0.55244739]
[1642278873845,3.008,3362.6,3362.5,2.41129761]
[1642278874046,3.008,3362.6,3362.5,0.55244739]
[1642278874649,3.008,3362.6,3362.5,0.43354739]
[1642278875248,3.785,3362.6,3362.5,0.43354739]
[1642278877501,4.93160347,3362.6,3362.5,0.38354739]
[1642278878396,5.70860347,3362.6,3362.5,0.38354739]
[1642278879597,5.74143647,3362.6,3362.5,0.38354739]
[1642278880398,5.70860347,3362.6,3362.5,0.38354739]
[1642278881645,6.48560347,3362.6,3362.5,0.38354739]
[1642278883350,6.48560347,3362.6,3362.2,0.1189]
[1642278883549,6.48560347,3362.6,3362.3,0.429]
[1642278883850,6.48560347,3362.6,3362.3,0.43013684]
[1642278884150,6.48560347,3362.6,3362.2,0.1189]
[1642278884351,0.00113684,3362.5,3362.2,0.1189]
[1642278884549,0.00113684,3362.5,3362.3,0.429]
[1642278884750,0.77813684,3362.5,3362.3,0.429]
[1642278888006,1.55513684,3362.5,3361.8,1.6773779]
[1642278888206,0.03632,3362.2,3361.7,6.23]
[1642278888406,0.0354137,3362.0,3361.5,6.6569]
[1642278888646,0.0354137,3362.0,3361.5,2.7234321]
[1642278888844,1.45808112,3361.9,3361.6,0.00170527]
[1642278889045,0.01052022,3361.8,3361.6,0.00170527]
[1642278889247,1.45808112,3361.9,3361.6,0.00170527]
[1642278889446,1.45808112,3361.9,3361.8,0.99270511]
[1642278889745,1.45808112,3361.9,3361.8,7.1479]
[1642278891145,2.23508112,3361.9,3361.8,7.1479]
[1642278892409,0.777,3361.9,3361.8,0.5479]
[1642278892602,0.00113684,3362.1,3361.9,16.5]
[1642278892797,0.00113684,3362.1,3362.0,16.639]
[1642278892995,2.03636814,3362.6,3362.1,14.1]
[1642278893201,2.03636814,3362.6,3362.5,5.36288036]
[1642278893396,3.52146402,3362.6,3362.5,5.79188036]
[1642278893597,4.39317078,3362.6,3362.5,6.02838036]
[1642278893795,3.52146402,3362.6,3362.5,6.02678036]
[1642278893998,3.52146402,3362.6,3362.5,5.91078036]
[1642278894197,3.52146402,3362.6,3362.5,5.79188036]
[1642278894396,4.29846402,3362.6,3362.5,5.79188036]
[1642278894597,4.29846402,3362.6,3362.5,5.90788036]
[1642278894998,4.29846402,3362.6,3362.5,6.88681204]
[1642278895196,4.29846402,3362.6,3362.5,8.93641521]
[1642278895396,4.29846402,3362.6,3362.5,8.92896347]
[1642278895801,4.29846402,3362.6,3362.5,8.92976347]
[1642278896000,4.29846402,3362.6,3362.5,8.93136347]
[1642278896246,4.29846402,3362.6,3362.5,8.93056347]
[1642278896446,4.29846402,3362.6,3362.5,8.92976347]
[1642278896848,4.29846402,3362.6,3362.5,8.92816347]
[1642278897150,4.29846402,3362.6,3362.5,8.92656347]
[1642278897347,4.29846402,3362.6,3362.5,8.92576347]
[1642278897546,5.07546402,3362.6,3362.5,8.92416347]
[1642278897750,5.07546402,3362.6,3362.5,8.81216347]
[1642278898548,5.07546402,3362.6,3362.5,14.28496347]
[1642278898747,5.07546402,3362.6,3362.5,14.29696347]
[1642278898948,5.07546402,3362.6,3362.5,14.29776347]
[1642278899249,1.38377007,3362.9,3362.7,0.03843054]
[1642278899448,1.38377007,3362.9,3362.8,2.46367271]
[1642278899649,1.38831747,3362.9,3362.8,2.46367271]
[1642278899904,1.38831747,3362.9,3362.8,7.82367271]
[1642278900295,1.38831747,3362.9,3362.8,7.93487271]
[1642278900499,1.38831747,3362.9,3362.8,7.82367271]
[1642278900697,2.16531747,3362.9,3362.8,7.82367271]
[1642278900901,2.16531747,3362.9,3362.8,7.93487271]
[1642278901095,1.42894747,3362.9,3362.8,7.82367271]
[1642278901299,1.42894747,3362.9,3362.8,7.93567271]
[1642278901498,1.42894747,3362.9,3362.8,7.93647271]
[1642278901698,0.7815474,3362.9,3362.8,7.93647271]
[1642278901899,0.7815474,3362.9,3362.8,7.93727271]
[1642278902098,0.7815474,3362.9,3362.8,13.23887271]
[1642278902300,0.7815474,3362.9,3362.8,13.23967271]
[1642278902500,0.7815474,3362.9,3362.8,13.24367271]
[1642278902700,0.7815474,3362.9,3362.8,13.24287271]
[1642278902899,1.07664698,3363.1,3362.9,6.15]
[1642278903102,1.07664698,3363.1,3363.0,7.73687401]
[1642278903300,1.07778382,3363.1,3363.0,7.73687401]
[1642278903749,1.07778382,3363.1,3363.0,5.789]
[1642278903946,1.85478382,3363.1,3363.0,7.7464468]
[1642278904148,1.85478382,3363.1,3363.0,5.789]
[1642278904752,0.41499382,3363.1,3363.0,7.73372127]
[1642278905148,0.41499382,3363.1,3363.0,5.789]
[1642278905951,0.41499382,3363.1,3363.0,7.73708055]
[1642278906155,0.41499382,3363.1,3363.0,5.789]
[1642278907152,1.19199382,3363.1,3363.0,5.789]
[1642278907594,1.19199382,3363.1,3363.0,7.77436895]
[1642278908195,1.19199382,3363.1,3363.0,7.77104656]
[1642278908496,1.19199382,3363.1,3363.0,5.78567761]
[1642278910423,1.96899382,3363.1,3363.0,5.78567761]
[1642278911967,1.96899382,3363.1,3363.0,7.72365617]
[1642278912154,1.96899382,3363.1,3363.0,5.78567761]
[1642278913661,2.74599382,3363.1,3363.0,5.78567761]
[1642278913861,0.032733,3363.2,3363.0,7.69746036]
[1642278914057,0.1189,3363.9,3363.1,1.91735918]
[1642278914257,0.1189,3363.9,3363.2,0.429]
[1642278914458,0.00397897,3363.8,3363.2,0.429]
[1642278914659,0.1189,3363.7,3363.3,1.01054874]
[1642278914906,0.1189,3363.7,3363.4,0.429]
[1642278914907,0.12231054,3363.7,3363.4,0.429]
[1642278915098,0.00284212,3363.6,3363.4,0.429]
[1642278915399,0.1211737,3363.5,3363.4,0.429]
[1642278916699,0.7792737,3363.5,3363.4,0.429]
[1642278919846,1.5562737,3363.5,3363.4,0.429]
[1642278923100,2.3332737,3363.5,3363.4,0.429]
[1642278925005,5.0556,3364.0,3363.5,0.0416057]
[1642278925202,0.1189,3363.9,3363.5,0.4706057]
[1642278925402,0.00170527,3363.8,3363.5,0.4706057]
[1642278925799,0.00113684,3363.7,3363.5,0.429]
[1642278926447,0.77813684,3363.7,3363.5,0.429]
[1642278929752,1.55513684,3363.7,3363.5,0.429]
[1642278933006,2.33213684,3363.7,3363.5,0.429]
[1642278936256,3.10913684,3363.7,3363.5,0.429]
[1642278936655,2.27351664,3363.7,3363.5,0.429]
[1642278938806,2.27351664,3363.7,3363.4,0.1189]
[1642278939209,2.27351664,3363.7,3363.5,0.00113684]
[1642278939409,3.05051664,3363.7,3363.5,0.00113684]
[1642278939812,3.05051664,3363.7,3363.4,0.00170527]
[1642278940810,0.1189,3363.6,3363.4,0.00170527]
[1642278941010,0.1311951,3363.6,3363.4,0.00170527]
[1642278941252,0.1189,3363.6,3363.4,0.00170527]
[1642278942455,0.1189,3363.6,3363.4,0.03542866]
[1642278942650,0.8959,3363.6,3363.4,0.03542866]
[1642278942951,0.8959,3363.6,3363.4,0.00170527]
[1642278943549,0.777,3363.6,3363.4,0.00170527]
[1642278944752,0.8959,3363.6,3363.4,0.00170527]
[1642278945802,1.6729,3363.6,3363.4,0.00170527]
[1642278947208,3.18377191,3363.6,3363.4,0.00170527]
[1642278947408,1.6729,3363.6,3363.3,0.00227369]
[1642278947614,1.6729,3363.6,3363.0,0.00397896]
[1642278948208,1.6729,3363.6,3363.1,1.02752861]
[1642278948413,3.73118302,3363.6,3363.1,1.02752861]
[1642278948653,3.73118302,3363.6,3363.2,0.00284211]
[1642278949052,4.50818302,3363.6,3363.2,0.00284211]
[1642278949453,5.69478302,3363.6,3363.2,0.00284211]
[1642278949651,5.69478302,3363.6,3362.6,1.24393096]
[1642278950052,5.69478302,3363.6,3362.7,0.00568423]
[1642278950552,0.83289526,3363.2,3362.7,0.90419278]
[1642278950762,2.08592771,3363.1,3362.7,0.90419278]
[1642278950958,2.08592771,3363.1,3362.8,0.00511581]
[1642278951356,0.1189,3363.1,3362.8,0.00511581]
[1642278951557,0.1189,3363.4,3362.8,0.00511581]
[1642278952256,0.8959,3363.4,3362.8,0.00511581]
[1642278952923,2.03619951,3363.3,3362.7,0.00568423]
[1642278953118,0.1189,3363.2,3362.7,0.00568423]
[1642278953722,0.88737909,3362.8,3362.7,0.00568423]
[1642278953920,0.1189,3363.2,3362.7,0.00568423]
[1642278954919,0.1189,3363.3,3362.7,0.00568423]
[1642278955526,0.90911991,3363.2,3362.7,0.00568423]
[1642278956756,0.90911991,3363.2,3362.7,0.12458423]
[1642278957155,2.54311391,3363.1,3362.8,0.00511581]
[1642278957355,0.01919951,3363.0,3362.8,0.00511581]
[1642278957760,0.01919951,3363.0,3362.7,0.00568423]
[1642278957958,2.54311391,3363.1,3362.7,0.00568423]
[1642278957959,0.1189,3362.9,3362.7,0.00568423]
[1642278958164,2.54311391,3362.9,3362.7,0.00568423]
[1642278958759,3.32011391,3362.9,3362.7,0.00568423]
[1642278959362,0.777,3362.9,3362.7,0.00568423]
[1642278960403,0.777,3362.9,3362.2,1.26377349]
[1642278960808,0.777,3362.9,3361.7,0.119095]
[1642278960809,0.777,3362.9,3362.3,0.00227369]
[1642278961003,0.777,3362.9,3361.9,1.20747274]
[1642278961202,0.00284211,3362.8,3362.0,0.00170527]
[1642278961402,2.54597814,3362.8,3361.7,0.119095]
[1642278961602,2.54597814,3362.8,3361.8,0.429]
[1642278961603,0.00397896,3362.7,3361.8,0.429]
[1642278961801,0.00397896,3362.7,3361.7,0.00113685]
[1642278962003,0.00454739,3362.6,3361.7,1.205417]
[1642278962401,0.00397896,3362.5,3361.7,1.205417]
[1642278962602,0.00397896,3362.5,3361.7,0.00113685]
[1642278962603,0.83470737,3362.5,3361.7,0.00113685]
[1642278962802,0.00341054,3362.4,3361.7,0.00113685]
[1642278963204,0.00284212,3362.3,3361.7,0.00113685]
[1642278963652,0.00227369,3362.2,3361.7,0.00113685]
[1642278964052,0.00170527,3362.1,3362.0,6.78478304]
[1642278964450,0.00170527,3362.1,3362.0,7.21378304]
[1642278964852,0.00170527,3362.1,3362.0,1.56378304]
[1642278965053,0.00170527,3362.1,3362.0,0.429]
[1642278965253,0.77870527,3362.1,3362.0,0.429]
[1642278965453,0.77870527,3362.1,3362.0,6.579]
[1642278967706,0.77870527,3362.1,3362.0,6.13483619]
[1642278968507,1.55570527,3362.1,3362.0,6.13483619]
[1642278969312,0.01190147,3362.0,3361.7,0.00113685]
[1642278969513,0.98727059,3361.9,3361.8,0.429]
[1642278971362,1.10617059,3361.9,3361.7,0.00113685]
[1642278971557,0.1189,3361.8,3361.7,0.00113685]
[1642278975102,0.8959,3361.8,3361.7,0.00113685]
[1642278976408,2.70199828,3361.8,3361.7,0.00113685]
[1642278976601,0.777,3361.8,3361.7,0.00113685]
[1642278978410,1.554,3361.8,3361.7,0.00113685]
[1642278980854,3.43765355,3361.8,3361.7,0.00113685]
[1642278981053,1.554,3361.8,3361.7,0.00113685]
[1642278981254,1.5548,3361.8,3361.7,0.00113685]
[1642278981559,1.5556,3361.8,3361.7,0.00113685]
[1642278981754,2.3326,3361.8,3361.7,0.00113685]
[1642278983202,4.190152,3361.8,3361.7,0.00113685]
[1642278983399,4.19678816,3361.8,3361.7,0.00113685]
[1642278983801,4.16863847,3361.8,3361.7,0.00113685]
[1642278984000,2.3326,3361.8,3361.7,0.00113685]
[1642278984903,3.1096,3361.8,3361.7,0.00113685]
[1642278986250,1.76080182,3361.9,3361.7,0.44889044]
[1642278986449,1.76080182,3361.9,3361.7,0.43013685]
[1642278986856,4.0,3361.8,3361.7,0.43013685]
[1642278988050,4.777,3361.8,3361.7,0.43013685]
[1642278990103,4.82301038,3361.8,3361.7,0.40781877]
[1642278991305,5.60001038,3361.8,3361.7,0.40781877]
[1642278994661,6.37701038,3361.8,3361.7,0.40781877]
[1642278995654,6.49591038,3361.8,3361.7,0.40781877]
[1642278997906,7.27291038,3361.8,3361.7,0.40781877]
[1642279000805,9.08004678,3361.8,3361.7,0.40781877]
[1642279001007,7.22291038,3361.8,3361.7,0.40781877]
[1642279001296,7.99991038,3361.8,3361.7,0.40781877]
[1642279001695,7.99991038,3361.8,3361.7,0.35781877]
[1642279004400,10.60984379,3361.8,3361.7,0.35781877]
[1642279004601,8.77691038,3361.8,3361.7,0.35781877]
[1642279007604,9.55391038,3361.8,3361.7,0.35781877]
[1642279010860,10.33091038,3361.8,3361.7,0.35781877]
[1642279013908,12.87472515,3361.8,3361.7,0.35781877]
[1642279014107,11.10791038,3361.8,3361.7,0.35781877]
[1642279015110,13.65170085,3361.8,3361.7,0.35781877]
[1642279016156,13.65170085,3361.8,3361.7,0.35038067]
[1642279017358,14.42870085,3361.8,3361.7,0.35038067]
[1642279017963,14.42870085,3361.8,3360.8,4.6904239]
[1642279018164,0.028761,3361.6,3360.9,0.429]
[1642279018370,0.028761,3361.6,3360.9,0.43411581]
[1642279018561,0.02848,3361.5,3360.9,0.43411581]
[1642279020804,0.02618378,3361.4,3360.9,0.43411581]
[1642279021010,1.0663345,3361.3,3360.9,0.43411581]
[1642279021204,0.02179012,3361.1,3360.9,0.4266781]
[1642279021406,1.91764396,3361.2,3360.9,0.4266781]
[1642279022306,0.027278,3361.2,3360.9,0.4266781]
[1642279023768,0.804278,3361.2,3360.9,0.4266781]
[1642279024263,2.69488832,3361.2,3360.9,0.4266781]
[1642279024662,0.804278,3361.2,3360.9,0.4266781]
[1642279025263,1.83079963,3361.1,3360.9,0.4266781]
[1642279025469,13.619,3361.0,3360.9,0.00511581]
[1642279025864,13.619,3361.0,3359.8,0.07957177]
[1642279025865,13.619,3361.0,3360.2,0.00909478]
[1642279026073,13.619,3361.0,3359.9,0.01080005]
[1642279026074,0.030484,3360.5,3359.9,0.01080005]
[1642279026265,0.147425,3360.4,3359.9,0.01080005]
[1642279026465,0.88306579,3360.3,3359.9,0.01080005]
[1642279026666,0.91093979,3360.3,3359.9,0.01080005]
[1642279027065,1.68793979,3360.3,3359.9,0.01080005]
[1642279027711,1.96921376,3360.2,3359.9,0.01080005]
[1642279028306,1.96921376,3360.2,3359.9,0.00644273]
[1642279029108,0.028151,3360.1,3359.9,0.00644273]
[1642279030313,0.805151,3360.1,3359.9,0.00644273]
[1642279031014,1.81140861,3360.0,3359.9,0.00644273]
[1642279031260,0.805151,3360.1,3359.9,0.00644273]
[1642279032659,0.805151,3360.1,3359.8,0.0360145]
[1642279032859,0.805151,3360.1,3359.7,0.132778]
[1642279033058,0.805151,3360.1,3359.8,0.06650459]
[1642279033458,1.582151,3360.1,3359.8,0.06650459]
[1642279036613,2.359151,3360.1,3359.8,0.06650459]
[1642279039758,3.136151,3360.1,3359.8,0.06650459]
[1642279041162,3.136151,3360.1,3359.8,0.01650459]
[1642279041559,3.136151,3360.1,3359.7,0.119139]
[1642279041760,3.136151,3360.1,3359.8,0.05150459]
[1642279041968,1.66006579,3360.3,3359.8,0.05150459]
[1642279041969,1.66006579,3360.3,3360.0,0.01278404]
[1642279042162,1.66006579,3360.3,3360.1,0.4706057]
[1642279042415,0.00170527,3360.2,3360.1,0.429]
[1642279043108,0.89770527,3360.2,3360.1,0.429]
[1642279044208,0.77870527,3360.2,3360.1,0.429]
[1642279046463,1.55570527,3360.2,3360.1,0.429]
[1642279049916,2.33270527,3360.2,3360.1,0.429]
[1642279053012,3.10970527,3360.2,3360.1,0.379]
[1642279054864,3.10970527,3360.2,3360.1,0.329]
[1642279056161,3.88670527,3360.2,3360.1,0.329]
[1642279059408,4.66370527,3360.2,3360.1,0.329]
[1642279062858,5.44070527,3360.2,3360.1,0.329]
[1642279063259,1.66006579,3360.3,3360.1,0.329]
[1642279066007,2.43706579,3360.3,3360.1,0.329]
[1642279069167,3.21406579,3360.3,3360.1,0.329]
[1642279071372,1.69334579,3360.3,3360.2,1.9422651]
[1642279071571,1.69334579,3360.3,3360.1,0.329]
[1642279071770,1.0575027,3360.2,3359.9,2.08878194]
[1642279071969,1.0575027,3360.2,3360.0,0.429]
[1642279072170,1.0575027,3360.2,3360.0,0.43013684]
[1642279072421,0.777,3360.2,3360.0,0.43013684]
[1642279074014,0.777,3360.2,3360.1,1.88215792]
[1642279074213,0.777,3360.2,3360.1,0.429]
[1642279075715,1.554,3360.2,3360.1,0.429]
[1642279078466,1.673,3360.2,3360.1,0.429]
[1642279078865,2.45,3360.2,3360.1,0.429]
[1642279079917,2.331,3360.2,3360.1,0.429]
[1642279080311,2.45,3360.2,3360.1,0.429]
[1642279081915,3.227,3360.2,3360.1,0.429]
[1642279082518,3.108,3360.2,3360.1,0.429]
[1642279082717,1.83962379,3360.3,3360.1,0.429]
[1642279082917,1.72062379,3360.3,3360.1,0.44274549]
[1642279083123,1.72062379,3360.3,3360.1,0.429]
[1642279083124,1.69334579,3360.3,3360.1,0.429]
[1642279085163,2.47034579,3360.3,3360.1,0.429]
[1642279086968,3.04519156,3360.8,3360.2,3.75]
[1642279086969,0.027278,3360.5,3360.2,3.75]
[1642279087269,1.2223,3360.8,3360.3,0.429]
[1642279087518,0.00284212,3360.7,3360.3,0.429]
[1642279087917,0.8872396,3360.6,3360.3,0.429]
[1642279088117,0.0022737,3360.6,3360.3,0.429]
[1642279088319,0.00170527,3360.5,3360.3,0.429]
[1642279088716,0.00113685,3360.4,3360.3,0.429]
[1642279089416,0.777,3360.6,3360.3,0.429]
[1642279089616,4.0,3360.5,3360.3,0.429]
[1642279090016,1.00148924,3360.7,3360.3,0.429]
[1642279090215,1.02929224,3360.7,3360.3,0.429]
[1642279090415,1.03099751,3360.7,3360.3,0.429]
[1642279090920,0.02950827,3360.7,3360.3,0.429]
[1642279091775,0.80650827,3360.7,3360.3,0.429]
[1642279092777,0.77870527,3360.7,3360.4,0.15394776]
[1642279092978,0.77870527,3360.7,3360.5,0.43872409]
[1642279093175,0.77870527,3360.7,3360.5,1.18221709]
[1642279093375,0.77870527,3360.7,3360.6,12.0112]
[1642279093581,0.77870527,3360.7,3360.6,12.4426]
[1642279093876,15.003,3361.1,3360.7,14.5]
[1642279094079,7.499,3361.1,3360.9,0.0072917]
[1642279094277,0.00170527,3361.0,3360.9,0.0072917]
[1642279094477,0.00170527,3361.0,3360.9,0.4362917]
[1642279094677,0.77870527,3361.0,3360.9,0.429]
[1642279094922,0.77870527,3361.0,3360.9,13.39732276]
[1642279095116,0.777,3361.2,3361.0,12.9]
[1642279095318,0.777,3361.2,3361.1,6.679]
[1642279095517,0.554,3361.5,3361.2,4.4933919]
[1642279095719,0.554,3361.5,3361.3,0.429]
[1642279097522,0.6729,3361.5,3361.3,0.429]
[1642279097723,0.554,3361.5,3361.3,0.429]
[1642279097922,1.331,3361.5,3361.3,0.429]
[1642279099171,0.1189,3361.4,3361.3,0.429]
[1642279099786,0.146415,3361.4,3361.3,0.429]
[1642279099975,4.79579151,3361.4,3361.3,0.429]
[1642279100167,1.29579151,3361.4,3361.3,0.429]
[1642279100772,1.26827651,3361.4,3361.3,0.429]
[1642279101168,2.04527651,3361.4,3361.3,0.429]
[1642279101773,2.07303551,3361.4,3361.3,0.429]
[1642279101971,0.01167286,3361.3,3360.7,0.429]
[1642279102169,0.00820483,3361.0,3360.7,0.429]
[1642279102444,0.119,3360.9,3360.8,0.00113685]
[1642279102634,0.119,3361.0,3360.8,0.00113685]